[Event "Live Chess"]
[Site "Chess.com"]
[Date "2024.06.02"]
[Round "-"]
[White "DoctorMantisTobogganMD"]
[Black "wadsy27"]
[Result "0-1"]
[WhiteElo "2176"]
[BlackElo "2576"]
[TimeControl "300"]
[EndTime "16:38:45 PDT"]
[Termination "wadsy27 won by checkmate"]

1. e4 {[%clk 0:04:58.9]} 1... e6 {[%clk 0:04:56.7]} 2. Nf3 {[%clk 0:04:57.1]}
2... d5 {[%clk 0:04:56.6]} 3. e5 {[%clk 0:04:55.8]} 3... c5 {[%clk 0:04:55.9]}
4. b4 {[%clk 0:04:55.2]} 4... d4 {[%clk 0:04:55.1]} 5. bxc5 {[%clk 0:04:54]}
5... Bxc5 {[%clk 0:04:55]} 6. Bd3 {[%clk 0:04:53.3]} 6... Nc6 {[%clk 0:04:53.8]}
7. O-O {[%clk 0:04:51.9]} 7... Nge7 {[%clk 0:04:52.6]} 8. Re1 {[%clk 0:04:50]}
8... Ng6 {[%clk 0:04:50.3]} 9. Be4 {[%clk 0:04:48.9]} 9... Qc7 {[%clk
0:04:46.5]} 10. d3 {[%clk 0:04:47.1]} 10... b6 {[%clk 0:04:39.8]} 11. Qe2 {[%clk
0:04:40.6]} 11... Bb7 {[%clk 0:04:38.7]} 12. h4 {[%clk 0:04:32]} 12... Nb4
{[%clk 0:04:17.5]} 13. Bxb7 {[%clk 0:04:25.6]} 13... Qxb7 {[%clk 0:04:17.4]} 14.
h5 {[%clk 0:04:21.6]} 14... Ne7 {[%clk 0:04:16.3]} 15. a3 {[%clk 0:04:16.2]}
15... Nbd5 {[%clk 0:04:14.8]} 16. Qe4 {[%clk 0:04:09.4]} 16... Rc8 {[%clk
0:03:54.7]} 17. Bg5 {[%clk 0:04:02.5]} 17... h6 {[%clk 0:03:50]} 18. Bxe7 {[%clk
0:03:49.3]} 18... Qxe7 {[%clk 0:03:49.9]} 19. Nbd2 {[%clk 0:03:45.2]} 19... Nc3
{[%clk 0:03:35.5]} 20. Qg4 {[%clk 0:03:40.2]} 20... O-O {[%clk 0:03:33.8]} 21.
Ne4 {[%clk 0:03:30.4]} 21... Nxe4 {[%clk 0:03:32.8]} 22. Qxe4 {[%clk 0:03:26.9]}
22... Bxa3 {[%clk 0:03:29.2]} 23. Nxd4 {[%clk 0:03:23.9]} 23... Bb2 {[%clk
0:03:25.5]} 24. Ra2 {[%clk 0:03:22.1]} 24... Bxd4 {[%clk 0:03:24.2]} 25. Qxd4
{[%clk 0:03:22]} 25... Rfd8 {[%clk 0:03:23.2]} 26. Qe3 {[%clk 0:03:13.5]} 26...
Rd5 {[%clk 0:03:04.3]} 27. c4 {[%clk 0:03:06.5]} 27... Rdc5 {[%clk 0:03:00.6]}
28. Rea1 {[%clk 0:03:03]} 28... a5 {[%clk 0:02:59.4]} 29. Rb2 {[%clk 0:03:01.4]}
29... R8c6 {[%clk 0:02:58]} 30. Rab1 {[%clk 0:02:59.6]} 30... Qc7 {[%clk
0:02:57.1]} 31. Rb5 {[%clk 0:02:55.9]} 31... Rxb5 {[%clk 0:02:53.1]} 32. Rxb5
{[%clk 0:02:55.8]} 32... Rc5 {[%clk 0:02:42]} 33. Rb1 {[%clk 0:02:30.7]} 33...
a4 {[%clk 0:02:37.1]} 34. f4 {[%clk 0:02:24.9]} 34... a3 {[%clk 0:02:34.8]} 35.
Ra1 {[%clk 0:02:15]} 35... Ra5 {[%clk 0:02:33.4]} 36. Ra2 {[%clk 0:02:10.5]}
36... Qc6 {[%clk 0:02:20.2]} 37. Kf2 {[%clk 0:02:01.4]} 37... Ra8 {[%clk
0:02:12.8]} 38. Ke1 {[%clk 0:01:35.2]} 38... b5 {[%clk 0:02:11]} 39. cxb5 {[%clk
0:01:29.5]} 39... Qxb5 {[%clk 0:02:10]} 40. Ke2 {[%clk 0:01:12.8]} 40... Qd5
{[%clk 0:02:04.1]} 41. Qd2 {[%clk 0:00:47.9]} 41... Qxg2+ {[%clk 0:02:02.5]} 42.
Ke3 {[%clk 0:00:47.8]} 42... Qg3+ {[%clk 0:01:52.8]} 43. Ke4 {[%clk 0:00:38.2]}
43... Qh3 {[%clk 0:01:47.4]} 44. Qg2 {[%clk 0:00:33.8]} 44... Qxg2+ {[%clk
0:01:46]} 45. Rxg2 {[%clk 0:00:28.5]} 45... a2 {[%clk 0:01:45.4]} 46. Rxa2
{[%clk 0:00:28.1]} 46... Rxa2 {[%clk 0:01:44.6]} 47. f5 {[%clk 0:00:27.9]} 47...
exf5+ {[%clk 0:01:42.5]} 48. Kxf5 {[%clk 0:00:27.8]} 48... Rg2 {[%clk
0:01:41.8]} 49. d4 {[%clk 0:00:26]} 49... Rg5+ {[%clk 0:01:41.5]} 50. Kf4 {[%clk
0:00:25.1]} 50... Rxh5 {[%clk 0:01:41.4]} 51. d5 {[%clk 0:00:25]} 51... Kf8
{[%clk 0:01:41.2]} 52. d6 {[%clk 0:00:22.7]} 52... Ke8 {[%clk 0:01:40.5]} 53.
Ke4 {[%clk 0:00:22.6]} 53... Kd7 {[%clk 0:01:39.8]} 54. Kd5 {[%clk 0:00:22.5]}
54... f6 {[%clk 0:01:38.8]} 55. Kd4 {[%clk 0:00:21]} 55... Rxe5 {[%clk
0:01:38.4]} 56. Kd3 {[%clk 0:00:20.4]} 56... Kxd6 {[%clk 0:01:38.3]} 57. Kd2
{[%clk 0:00:20.3]} 57... Kd5 {[%clk 0:01:37.6]} 58. Kd3 {[%clk 0:00:20.2]} 58...
Re6 {[%clk 0:01:36.3]} 59. Kd2 {[%clk 0:00:20.1]} 59... Kd4 {[%clk 0:01:35.3]}
60. Kc2 {[%clk 0:00:19.2]} 60... Re2+ {[%clk 0:01:34.8]} 61. Kb3 {[%clk
0:00:19.1]} 61... f5 {[%clk 0:01:34]} 62. Kb4 {[%clk 0:00:18.5]} 62... Rb2+
{[%clk 0:01:33.2]} 63. Ka3 {[%clk 0:00:16.6]} 63... Kc3 {[%clk 0:01:32.4]} 64.
Ka4 {[%clk 0:00:15.6]} 64... Rb1 {[%clk 0:01:31.7]} 65. Ka3 {[%clk 0:00:15.5]}
65... Ra1# {[%clk 0:01:30.7]} 0-1

[Event "Live Chess"]
[Site "Chess.com"]
[Date "2024.06.02"]
[Round "-"]
[White "Duke_of_Bebington"]
[Black "raclement"]
[Result "0-1"]
[WhiteElo "1632"]
[BlackElo "1724"]
[TimeControl "300"]
[EndTime "16:39:00 PDT"]
[Termination "raclement won by resignation"]

1. e4 {[%clk 0:04:57.5]} 1... c5 {[%clk 0:04:56.5]} 2. c3 {[%clk 0:04:56]} 2...
g6 {[%clk 0:04:53.4]} 3. d4 {[%clk 0:04:54.8]} 3... cxd4 {[%clk 0:04:50.4]} 4.
cxd4 {[%clk 0:04:54.7]} 4... d5 {[%clk 0:04:48]} 5. e5 {[%clk 0:04:52.6]} 5...
Bg7 {[%clk 0:04:44.7]} 6. f4 {[%clk 0:04:47]} 6... Nc6 {[%clk 0:04:42.2]} 7. Nf3
{[%clk 0:04:44.6]} 7... Bg4 {[%clk 0:04:38.7]} 8. Be2 {[%clk 0:04:43.1]} 8... e6
{[%clk 0:04:33.1]} 9. Nc3 {[%clk 0:04:40.2]} 9... Nge7 {[%clk 0:04:29.6]} 10.
O-O {[%clk 0:04:22.8]} 10... Nf5 {[%clk 0:04:27.6]} 11. Nb5 {[%clk 0:04:14.7]}
11... O-O {[%clk 0:04:23.1]} 12. h3 {[%clk 0:03:59.6]} 12... Bxf3 {[%clk
0:04:20.7]} 13. Bxf3 {[%clk 0:03:58.9]} 13... a6 {[%clk 0:04:18.9]} 14. Nc3
{[%clk 0:03:49.7]} 14... Nfxd4 {[%clk 0:04:15.2]} 15. Be3 {[%clk 0:03:45]} 15...
Nxf3+ {[%clk 0:04:13.4]} 16. Rxf3 {[%clk 0:03:35.3]} 16... Rc8 {[%clk
0:04:04.5]} 17. Bd4 {[%clk 0:03:32.6]} 17... b5 {[%clk 0:04:02.2]} 18. a3 {[%clk
0:03:31.5]} 18... Na5 {[%clk 0:03:59.7]} 19. Qe2 {[%clk 0:03:12.4]} 19... Nc6
{[%clk 0:03:41]} 20. Qf2 {[%clk 0:03:09.7]} 20... Nxd4 {[%clk 0:03:38.2]} 21.
Qxd4 {[%clk 0:03:09.6]} 21... Re8 {[%clk 0:03:36.3]} 22. b3 {[%clk 0:03:06.3]}
22... Bf8 {[%clk 0:03:34]} 23. a4 {[%clk 0:03:04.3]} 23... Bc5 {[%clk
0:03:29.9]} 0-1

[Event "Live Chess"]
[Site "Chess.com"]
[Date "2024.06.02"]
[Round "-"]
[White "vincents82"]
[Black "AndrewBak1"]
[Result "1-0"]
[WhiteElo "2036"]
[BlackElo "1878"]
[TimeControl "300"]
[EndTime "16:39:05 PDT"]
[Termination "vincents82 won by resignation"]

1. e4 {[%clk 0:04:54.3]} 1... c5 {[%clk 0:04:58.7]} 2. Nf3 {[%clk 0:04:53.2]}
2... Nc6 {[%clk 0:04:58]} 3. d4 {[%clk 0:04:52.7]} 3... cxd4 {[%clk 0:04:57.9]}
4. Nxd4 {[%clk 0:04:52.2]} 4... Nf6 {[%clk 0:04:57.3]} 5. Nc3 {[%clk 0:04:51.5]}
5... e5 {[%clk 0:04:56.3]} 6. Ndb5 {[%clk 0:04:50.2]} 6... d6 {[%clk 0:04:52.7]}
7. Bg5 {[%clk 0:04:48.3]} 7... a6 {[%clk 0:04:51.8]} 8. Na3 {[%clk 0:04:47.6]}
8... b5 {[%clk 0:04:51.7]} 9. Nd5 {[%clk 0:04:46.9]} 9... Qa5+ {[%clk
0:04:50.9]} 10. Bd2 {[%clk 0:04:45.3]} 10... Qd8 {[%clk 0:04:48.9]} 11. Bg5
{[%clk 0:04:44.7]} 11... Be7 {[%clk 0:04:47.8]} 12. Bxf6 {[%clk 0:04:43]} 12...
Bxf6 {[%clk 0:04:47.3]} 13. c4 {[%clk 0:04:42.4]} 13... b4 {[%clk 0:04:44.3]}
14. Nc2 {[%clk 0:04:41.8]} 14... a5 {[%clk 0:04:43.9]} 15. g3 {[%clk 0:04:40.7]}
15... O-O {[%clk 0:04:41.5]} 16. Bg2 {[%clk 0:04:40.2]} 16... Ba6 {[%clk
0:04:31.8]} 17. b3 {[%clk 0:04:38.5]} 17... g6 {[%clk 0:04:18.3]} 18. O-O {[%clk
0:04:31.6]} 18... Bg7 {[%clk 0:04:15.4]} 19. Nce3 {[%clk 0:04:30.5]} 19... Nd4
{[%clk 0:04:07.9]} 20. Nc2 {[%clk 0:04:28.3]} 20... Nxc2 {[%clk 0:03:58.2]} 21.
Qxc2 {[%clk 0:04:27]} 21... Rc8 {[%clk 0:03:53]} 22. Kh1 {[%clk 0:04:23.6]}
22... f5 {[%clk 0:03:48.4]} 23. exf5 {[%clk 0:04:20.7]} 23... gxf5 {[%clk
0:03:46.1]} 24. Bh3 {[%clk 0:04:16.5]} 24... f4 {[%clk 0:03:13]} 25. Bxc8 {[%clk
0:04:12.9]} 25... Bxc8 {[%clk 0:03:11.9]} 26. gxf4 {[%clk 0:04:01.8]} 26... exf4
{[%clk 0:03:11.8]} 27. Rg1 {[%clk 0:03:54]} 27... f3 {[%clk 0:03:06.8]} 28. Rg3
{[%clk 0:03:38.6]} 28... Kh8 {[%clk 0:03:04.7]} 29. Rag1 {[%clk 0:03:35.5]}
29... Be5 {[%clk 0:03:02.5]} 30. Rg5 {[%clk 0:03:24.5]} 30... Bh3 {[%clk
0:02:50.4]} 31. Qe4 {[%clk 0:03:17.4]} 31... Bg2+ {[%clk 0:02:24.2]} 32. R5xg2
{[%clk 0:03:15.3]} 32... fxg2+ {[%clk 0:02:24.1]} 33. Qxg2 {[%clk 0:03:14.6]}
33... Qh4 {[%clk 0:02:16.5]} 34. f4 {[%clk 0:03:11.5]} 34... Bd4 {[%clk
0:02:07.5]} 35. Qg3 {[%clk 0:02:59.2]} 35... Qh5 {[%clk 0:01:47.2]} 36. Re1
{[%clk 0:02:52.6]} 36... Rg8 {[%clk 0:01:28.8]} 37. Qd3 {[%clk 0:02:50.4]} 37...
Qg4 {[%clk 0:01:18.7]} 38. Qxd4+ {[%clk 0:02:45.7]} 1-0

[Event "Live Chess"]
[Site "Chess.com"]
[Date "2024.06.02"]
[Round "-"]
[White "Queensandpawns"]
[Black "StoreySniper"]
[Result "0-1"]
[WhiteElo "2304"]
[BlackElo "2534"]
[TimeControl "300"]
[EndTime "16:39:15 PDT"]
[Termination "StoreySniper won by resignation"]

1. d4 {[%clk 0:04:55.8]} 1... g6 {[%clk 0:04:59.1]} 2. h4 {[%clk 0:04:54.9]}
2... Bg7 {[%clk 0:04:58.3]} 3. h5 {[%clk 0:04:54.6]} 3... c5 {[%clk 0:04:57]} 4.
h6 {[%clk 0:04:54.4]} 4... Bxd4 {[%clk 0:04:54.8]} 5. c3 {[%clk 0:04:53.3]} 5...
Bf6 {[%clk 0:04:53.8]} 6. Nf3 {[%clk 0:04:53.2]} 6... Nc6 {[%clk 0:04:50.8]} 7.
e4 {[%clk 0:04:52.7]} 7... d6 {[%clk 0:04:49.5]} 8. Bc4 {[%clk 0:04:52.2]} 8...
Bg4 {[%clk 0:04:46.5]} 9. Bg5 {[%clk 0:04:46.7]} 9... Bxf3 {[%clk 0:04:28.6]}
10. Qxf3 {[%clk 0:04:46.6]} 10... Bxg5 {[%clk 0:04:19.8]} 11. Bxf7+ {[%clk
0:04:35.4]} 11... Kf8 {[%clk 0:04:10.5]} 12. Bxg6+ {[%clk 0:03:57.6]} 12... Nf6
{[%clk 0:03:57.3]} 13. Bf5 {[%clk 0:03:52.9]} 13... Bc1 {[%clk 0:03:49.4]} 14.
Qg3 {[%clk 0:03:44.7]} 14... Rg8 {[%clk 0:03:42.5]} 15. Qf3 {[%clk 0:03:37.4]}
15... Bxb2 {[%clk 0:03:39.3]} 0-1

[Event "Live Chess"]
[Site "Chess.com"]
[Date "2024.06.02"]
[Round "-"]
[White "GwaryTek"]
[Black "Kyrylo7770"]
[Result "1-0"]
[WhiteElo "1921"]
[BlackElo "1626"]
[TimeControl "300"]
[EndTime "16:39:21 PDT"]
[Termination "GwaryTek won by checkmate"]

1. d4 {[%clk 0:04:55.2]} 1... d5 {[%clk 0:04:59.1]} 2. c4 {[%clk 0:04:53]} 2...
Bg4 {[%clk 0:04:58.2]} 3. cxd5 {[%clk 0:04:50.4]} 3... Qxd5 {[%clk 0:04:57]} 4.
Nc3 {[%clk 0:04:48.9]} 4... Qd8 {[%clk 0:04:56.2]} 5. f3 {[%clk 0:04:43.3]} 5...
Bh5 {[%clk 0:04:55.1]} 6. e4 {[%clk 0:04:36]} 6... e6 {[%clk 0:04:54.2]} 7. Be3
{[%clk 0:04:32.6]} 7... Bb4 {[%clk 0:04:52.9]} 8. Qa4+ {[%clk 0:04:29.6]} 8...
Nc6 {[%clk 0:04:48.5]} 9. Bb5 {[%clk 0:04:22.1]} 9... Bxc3+ {[%clk 0:04:47.3]}
10. bxc3 {[%clk 0:04:21.9]} 10... Ne7 {[%clk 0:04:46.2]} 11. Ne2 {[%clk
0:04:16.6]} 11... O-O {[%clk 0:04:45.2]} 12. O-O {[%clk 0:04:14.6]} 12... Ng6
{[%clk 0:04:36.9]} 13. Bxc6 {[%clk 0:04:09.7]} 13... bxc6 {[%clk 0:04:35.7]} 14.
Qxc6 {[%clk 0:04:08.5]} 14... Rb8 {[%clk 0:04:34.8]} 15. Rab1 {[%clk 0:03:58.8]}
15... Rxb1 {[%clk 0:04:32.8]} 16. Rxb1 {[%clk 0:03:56.8]} 16... Ne7 {[%clk
0:04:30]} 17. Qc5 {[%clk 0:03:51.6]} 17... Bg6 {[%clk 0:04:28.4]} 18. Rb7 {[%clk
0:03:42.3]} 18... Nc8 {[%clk 0:04:15.8]} 19. Qxc7 {[%clk 0:03:37.2]} 19... Qh4
{[%clk 0:04:10.9]} 20. Qg3 {[%clk 0:03:29.2]} 20... Qd8 {[%clk 0:04:06.2]} 21.
h4 {[%clk 0:03:26]} 21... h5 {[%clk 0:04:03.2]} 22. Kh2 {[%clk 0:03:16.1]} 22...
Nb6 {[%clk 0:03:59.2]} 23. Rxa7 {[%clk 0:03:06.2]} 23... Nc4 {[%clk 0:03:58.2]}
24. Bg5 {[%clk 0:02:58.7]} 24... Qc8 {[%clk 0:03:53.4]} 25. Rc7 {[%clk
0:02:55.6]} 25... Qa6 {[%clk 0:03:51.2]} 26. Nf4 {[%clk 0:02:44.4]} 26... Qxa2
{[%clk 0:03:44.3]} 27. Nxg6 {[%clk 0:02:29.2]} 27... fxg6 {[%clk 0:03:43.4]} 28.
Be7 {[%clk 0:02:22.3]} 28... Rb8 {[%clk 0:03:30.3]} 29. Qxg6 {[%clk 0:02:19.5]}
29... Ne3 {[%clk 0:03:25.6]} 30. Bd6 {[%clk 0:01:53.5]} 30... Rb2 {[%clk
0:03:23.8]} 31. Qxg7# {[%clk 0:01:51.7]} 1-0

[Event "Live Chess"]
[Site "Chess.com"]
[Date "2024.06.02"]
[Round "-"]
[White "Crowded_House"]
[Black "dmitro74"]
[Result "0-1"]
[WhiteElo "1719"]
[BlackElo "1742"]
[TimeControl "300"]
[EndTime "16:39:33 PDT"]
[Termination "dmitro74 won by resignation"]

1. d4 {[%clk 0:04:57.7]} 1... d5 {[%clk 0:04:58.6]} 2. Bg5 {[%clk 0:04:56.7]}
2... h6 {[%clk 0:04:53.4]} 3. Bh4 {[%clk 0:04:55.1]} 3... g5 {[%clk 0:04:52.2]}
4. Bg3 {[%clk 0:04:53.8]} 4... Bg7 {[%clk 0:04:51.4]} 5. c3 {[%clk 0:04:52.1]}
5... Bf5 {[%clk 0:04:47.2]} 6. e3 {[%clk 0:04:50.2]} 6... Nd7 {[%clk 0:04:43.6]}
7. Bd3 {[%clk 0:04:48.8]} 7... Bxd3 {[%clk 0:04:38]} 8. Qxd3 {[%clk 0:04:47.9]}
8... e5 {[%clk 0:04:29.2]} 9. dxe5 {[%clk 0:04:45.6]} 9... Nxe5 {[%clk
0:04:26.9]} 10. Bxe5 {[%clk 0:04:34.4]} 10... Bxe5 {[%clk 0:04:24.4]} 11. Nf3
{[%clk 0:04:33.3]} 11... Bg7 {[%clk 0:04:21.6]} 12. O-O {[%clk 0:04:25.8]} 12...
Nf6 {[%clk 0:04:19]} 13. Nbd2 {[%clk 0:04:17.1]} 13... O-O {[%clk 0:04:14.6]}
14. Rfd1 {[%clk 0:04:13.2]} 14... c6 {[%clk 0:04:11.1]} 15. Nb3 {[%clk
0:04:10.2]} 15... Qc7 {[%clk 0:03:53.2]} 16. h3 {[%clk 0:04:05]} 16... Ne4
{[%clk 0:03:48]} 17. Nbd2 {[%clk 0:04:02.2]} 17... f5 {[%clk 0:03:42.3]} 18. Nd4
{[%clk 0:03:55]} 18... Rae8 {[%clk 0:03:32.7]} 19. Rac1 {[%clk 0:03:37.4]} 19...
Nxd2 {[%clk 0:03:22.9]} 20. Rxd2 {[%clk 0:03:29.9]} 20... f4 {[%clk 0:03:21.1]}
21. exf4 {[%clk 0:03:18]} 21... Qxf4 {[%clk 0:03:18.7]} 22. Rcd1 {[%clk
0:03:01]} 22... a6 {[%clk 0:02:55.6]} 23. Re2 {[%clk 0:02:47.5]} 23... Bxd4
{[%clk 0:02:13.2]} 24. Rxe8 {[%clk 0:02:37.3]} 24... Bxf2+ {[%clk 0:02:03.8]}
25. Kh1 {[%clk 0:02:33.8]} 25... Rxe8 {[%clk 0:02:00.5]} 26. Qg6+ {[%clk
0:02:31.4]} 26... Kf8 {[%clk 0:01:59.1]} 27. Qxh6+ {[%clk 0:02:29.3]} 27... Ke7
{[%clk 0:01:57.9]} 28. Qg6 {[%clk 0:02:17.4]} 28... Rf8 {[%clk 0:01:42.7]} 29.
Rd3 {[%clk 0:02:01.6]} 29... Qf5 {[%clk 0:01:29.6]} 30. Qg7+ {[%clk 0:01:47.6]}
30... Rf7 {[%clk 0:01:28.4]} 31. Rf3 {[%clk 0:01:25.8]} 31... Qxf3 {[%clk
0:01:20.4]} 32. gxf3 {[%clk 0:01:23.5]} 32... Rxg7 {[%clk 0:01:18.4]} 33. Kg2
{[%clk 0:01:22]} 33... Be3 {[%clk 0:01:16.3]} 0-1

[Event "Live Chess"]
[Site "Chess.com"]
[Date "2024.06.02"]
[Round "-"]
[White "grillage"]
[Black "NebodarMatevich"]
[Result "1-0"]
[WhiteElo "1845"]
[BlackElo "1561"]
[TimeControl "300"]
[EndTime "16:39:46 PDT"]
[Termination "grillage won by resignation"]

1. d4 {[%clk 0:04:57.5]} 1... Nf6 {[%clk 0:04:59.1]} 2. Nf3 {[%clk 0:04:57]}
2... g6 {[%clk 0:04:58.4]} 3. c4 {[%clk 0:04:56]} 3... Bg7 {[%clk 0:04:57.9]} 4.
g3 {[%clk 0:04:54.2]} 4... O-O {[%clk 0:04:57.4]} 5. Bg2 {[%clk 0:04:53.2]} 5...
d6 {[%clk 0:04:56.9]} 6. O-O {[%clk 0:04:48.7]} 6... Nfd7 {[%clk 0:04:44.7]} 7.
Nc3 {[%clk 0:04:45.2]} 7... c6 {[%clk 0:04:43.6]} 8. d5 {[%clk 0:04:43.5]} 8...
Na6 {[%clk 0:04:33.8]} 9. dxc6 {[%clk 0:04:38.8]} 9... bxc6 {[%clk 0:04:33.1]}
10. Bg5 {[%clk 0:04:29.6]} 10... Rb8 {[%clk 0:04:30.4]} 11. Rb1 {[%clk
0:04:27.6]} 11... h6 {[%clk 0:04:28.6]} 12. Be3 {[%clk 0:04:24.6]} 12... c5
{[%clk 0:04:23]} 13. a3 {[%clk 0:04:14.5]} 13... Bb7 {[%clk 0:04:19.2]} 14. Qc2
{[%clk 0:04:12.5]} 14... Ne5 {[%clk 0:04:11.9]} 15. Nxe5 {[%clk 0:04:08.7]}
15... Bxg2 {[%clk 0:04:10.8]} 16. Nxf7 {[%clk 0:03:51.8]} 16... Rxf7 {[%clk
0:04:05.7]} 17. Kxg2 {[%clk 0:03:50.6]} 17... Qd7 {[%clk 0:03:43.6]} 18. Qxg6
{[%clk 0:03:46]} 18... Rf6 {[%clk 0:03:34.9]} 19. Qd3 {[%clk 0:03:39]} 19...
Rbf8 {[%clk 0:03:33.3]} 20. Nd5 {[%clk 0:03:36.6]} 20... R6f7 {[%clk 0:03:26.6]}
21. Qg6 {[%clk 0:03:27.1]} 21... e6 {[%clk 0:03:22.2]} 22. Nf4 {[%clk
0:03:23.2]} 22... d5 {[%clk 0:03:16.7]} 23. Qxe6 {[%clk 0:03:14.7]} 23... dxc4
{[%clk 0:03:07.4]} 24. Qxd7 {[%clk 0:03:05.8]} 24... Rxd7 {[%clk 0:03:06.1]} 25.
Ne6 {[%clk 0:03:04.1]} 25... Rf6 {[%clk 0:03:00.5]} 26. Nxg7 {[%clk 0:02:55.8]}
26... Rxg7 {[%clk 0:02:59.2]} 27. Rbc1 {[%clk 0:02:49.4]} 27... Rb6 {[%clk
0:02:42.7]} 28. Rxc4 {[%clk 0:02:41.2]} 28... Rxb2 {[%clk 0:02:41.4]} 29. Bxc5
{[%clk 0:02:39.4]} 29... Nxc5 {[%clk 0:02:40]} 30. Rxc5 {[%clk 0:02:38.3]} 30...
Rxe2 {[%clk 0:02:39.4]} 31. Ra5 {[%clk 0:02:32.6]} 31... Ra2 {[%clk 0:02:37.2]}
32. h4 {[%clk 0:02:23]} 32... Rf7 {[%clk 0:02:36.2]} 33. g4 {[%clk 0:02:19.8]}
33... Kg7 {[%clk 0:02:35.1]} 34. Kg3 {[%clk 0:02:18.6]} 34... Rc2 {[%clk
0:02:20.6]} 35. f3 {[%clk 0:02:13.3]} 35... Rc3 {[%clk 0:02:07.2]} 36. Ra6
{[%clk 0:02:12]} 36... Rb7 {[%clk 0:01:56.9]} 37. h5 {[%clk 0:02:09.5]} 37...
Rb6 {[%clk 0:01:55.3]} 38. Rxa7+ {[%clk 0:02:06.6]} 38... Kf6 {[%clk 0:01:52.5]}
39. Ra5 {[%clk 0:01:57.6]} 39... Rbb3 {[%clk 0:01:45.4]} 40. Ra6+ {[%clk
0:01:49.5]} 40... Kg7 {[%clk 0:01:44.2]} 41. a4 {[%clk 0:01:46.3]} 1-0

[Event "Live Chess"]
[Site "Chess.com"]
[Date "2024.06.02"]
[Round "-"]
[White "ACM42"]
[Black "cymbalshift"]
[Result "1-0"]
[WhiteElo "2167"]
[BlackElo "1731"]
[TimeControl "300"]
[EndTime "16:39:52 PDT"]
[Termination "ACM42 won by resignation"]

1. e4 {[%clk 0:04:57.4]} 1... e5 {[%clk 0:04:59]} 2. Nf3 {[%clk 0:04:56.6]} 2...
Nc6 {[%clk 0:04:58]} 3. Bc4 {[%clk 0:04:55.8]} 3... Bc5 {[%clk 0:04:56.1]} 4. c3
{[%clk 0:04:54.5]} 4... Nf6 {[%clk 0:04:54.4]} 5. d4 {[%clk 0:04:53.6]} 5...
exd4 {[%clk 0:04:53.7]} 6. O-O {[%clk 0:04:53.1]} 6... Nxe4 {[%clk 0:04:40.1]}
7. cxd4 {[%clk 0:04:51.1]} 7... Bb4 {[%clk 0:04:27.9]} 8. d5 {[%clk 0:04:47.3]}
8... Ne7 {[%clk 0:04:25.1]} 9. a3 {[%clk 0:04:40.2]} 9... Ba5 {[%clk 0:04:17.2]}
10. Qd4 {[%clk 0:04:25.4]} 10... Nf6 {[%clk 0:04:03.7]} 11. Bg5 {[%clk
0:04:23.4]} 11... Bb6 {[%clk 0:04:01.4]} 12. Qc3 {[%clk 0:04:16.3]} 12... Ng6
{[%clk 0:03:45.3]} 13. Re1+ {[%clk 0:04:10]} 13... Kf8 {[%clk 0:03:40.3]} 14.
Nbd2 {[%clk 0:04:09.1]} 14... h6 {[%clk 0:03:23.2]} 15. Bxf6 {[%clk 0:03:47.7]}
15... Qxf6 {[%clk 0:03:21.8]} 16. Qb4+ {[%clk 0:03:24.4]} 16... d6 {[%clk
0:03:18.3]} 17. Ne4 {[%clk 0:03:21]} 17... Qf4 {[%clk 0:02:49.8]} 18. a4 {[%clk
0:03:10.2]} 18... Ne5 {[%clk 0:02:42.7]} 19. Nxe5 {[%clk 0:03:02.1]} 19... Qxe5
{[%clk 0:02:32.3]} 20. Ng3 {[%clk 0:02:29]} 20... Qf6 {[%clk 0:02:18.4]} 21. Qd2
{[%clk 0:02:13.2]} 21... Bd7 {[%clk 0:02:10.3]} 22. a5 {[%clk 0:01:45.8]} 22...
Bd4 {[%clk 0:02:02.4]} 23. Ne4 {[%clk 0:01:44.4]} 23... Qe5 {[%clk 0:01:54.2]}
24. Nc5 {[%clk 0:01:41.1]} 24... Qxe1+ {[%clk 0:01:22.5]} 25. Rxe1 {[%clk
0:01:37.2]} 25... Bxc5 {[%clk 0:01:22.4]} 26. b4 {[%clk 0:01:35.4]} 26... Re8
{[%clk 0:01:10]} 27. Rxe8+ {[%clk 0:01:32.9]} 27... Kxe8 {[%clk 0:01:09.9]} 28.
bxc5 {[%clk 0:01:32.1]} 28... Kd8 {[%clk 0:01:03.5]} 29. a6 {[%clk 0:01:20]}
29... b6 {[%clk 0:00:55.9]} 30. c6 {[%clk 0:01:14.1]} 30... Bf5 {[%clk
0:00:49.8]} 31. h3 {[%clk 0:01:10.6]} 31... g5 {[%clk 0:00:47.9]} 32. g4 {[%clk
0:01:06.6]} 32... Bg6 {[%clk 0:00:46.4]} 33. Qd4 {[%clk 0:01:05.7]} 33... Re8
{[%clk 0:00:43.6]} 34. Qf6+ {[%clk 0:01:03.3]} 34... Kc8 {[%clk 0:00:42.3]} 35.
Qg7 {[%clk 0:01:02.2]} 35... Re1+ {[%clk 0:00:30.3]} 36. Kg2 {[%clk 0:01:00.3]}
36... Be4+ {[%clk 0:00:28.7]} 37. f3 {[%clk 0:00:59.2]} 37... Re2+ {[%clk
0:00:15.7]} 38. Bxe2 {[%clk 0:00:56.8]} 1-0